bitfinex/quotes_SOLUSD_20240905
["timestamp","ask_amount","ask_price","bid_price","bid_amount"]
[1725555479275,0.8589171,130.38,130.32,40.6607]
[1725555479276,7.6711,130.36,130.32,40.6607]
[1725555479477,0.8589171,130.38,130.32,15.3835]
[1725555479478,7.6716,130.35,130.32,15.3835]
[1725555479848,7.6725,130.34,130.3,391.2]
[1725555480067,7.6725,130.34,130.3,398.8744]
[1725555480266,7.6717,130.35,130.31,1.5342383]
[1725555480581,7.6717,130.35,130.3,398.8744]
[1725555480782,7.6712,130.36,130.31,7.6738]
[1725555481084,20.0,130.35,130.3,391.2]
[1725555481275,7.6735,130.32,130.3,391.2]
[1725555481589,7.6726,130.34,130.29,22.8332]
[1725555481783,27.6732,130.33,130.29,15.1583]
[1725555481956,20.0,130.35,130.29,15.1583]
[1725555481957,7.6736,130.32,130.29,15.1583]
[1725555483379,7.6726,130.34,130.3,1.53454488]
[1725555483585,20.0,130.33,130.3,9.20864488]
[1725555484077,7.671,130.36,130.31,7.6739]
[1725555484276,7.6706,130.37,130.32,28.39013467]
[1725555484471,8.5289171,130.38,130.33,9.20653208]
[1725555485200,8.5289171,130.38,130.34,7.672]
[1725555485362,8.5289171,130.38,130.35,1.53380452]
[1725555485570,20.0,130.37,130.34,7.672]
[1725555485878,20.0,130.37,130.32,19.1831]
[1725555486083,7.6716,130.35,130.31,7.6739]
[1725555486382,7.6716,130.35,130.3,7.6743]
[1725555486579,7.6716,130.35,130.29,475.5452]
[1725555486580,20.0,130.34,130.29,433.2202]
[1725555486785,7.6734,130.33,130.29,425.5452]
[1725555487078,7.6741,130.31,130.29,15.1583]
[1725555487260,7.6736,130.32,130.29,15.1583]
[1725555487471,20.0,130.31,130.29,15.1583]
[1725555487979,20.0,130.31,130.3,1.53465622]
[1725555488158,0.85848765,130.37,130.29,22.8334]
[1725555488363,0.85848765,130.37,130.29,414.0334]
[1725555488683,7.6732,130.33,130.29,414.0334]
[1725555488856,20.0,130.32,130.29,414.0334]
[1725555492164,20.0348171,130.38,130.3,20.72059909]
[1725555492367,7.672,130.35,130.31,7.6739]
[1725555492566,20.0348171,130.38,130.32,1.53416064]
[1725555492567,27.6722,130.34,130.32,1.53416064]
[1725555493587,7.6728,130.33,130.3,418.0604]
[1725555493956,20.0,130.34,130.3,418.0604]
[1725555493957,27.6724,130.34,130.3,418.0604]
[1725555494357,27.6724,130.34,130.3,391.2]
[1725555494358,20.0,130.34,130.3,391.2]
[1725555494579,7.674,130.31,130.3,391.2]
[1725555494760,27.674,130.31,130.29,15.1583]
[1725555494964,7.674,130.31,130.29,15.1583]
[1725555495376,20.85848765,130.35,130.27,391.2]
[1725555495377,7.6756,130.29,130.27,391.2]
[1725555495565,7.6757,130.28,130.27,391.2]
[1725555495959,7.6755,130.29,130.27,391.2]
[1725555496475,7.6757,130.28,130.27,391.2]
[1725555498082,7.6769,130.26,130.22,415.0457]
[1725555498587,19.187,130.3,130.23,20.73175922]
[1725555498765,20.0,130.29,130.24,1.53496623]
[1725555499299,20.0,130.29,130.24,7.6777]
[1725555499300,7.6761,130.28,130.24,7.6777]
[1725555499588,7.6748,130.3,130.25,1.53504944]
[1725555499884,7.6748,130.3,130.26,7.6768]
[1725555500094,20.0,130.29,130.27,46.53477027]
[1725555501287,20.0,130.29,130.27,45.0]
[1725555501662,20.0,130.29,130.22,407.3669]
[1725555501985,7.6783,130.24,130.2,7.6803]
[1725555502186,7.6783,130.24,130.19,34.3706]
[1725555502187,1.71708765,130.32,130.22,7.6788]
[1725555502391,7.6764,130.27,130.23,7.6786]
[1725555502693,27.6771,130.26,130.23,19.1964]
[1725555502859,1.71708765,130.32,130.22,50.0]
[1725555503062,7.6737,130.32,130.26,15.8059]
[1725555503285,7.6737,130.32,130.27,54.21076576]
[1725555503476,7.674,130.31,130.27,73.40096576]
[1725555504007,7.39408765,130.35,130.28,7.6756]
[1725555504170,7.39408765,130.35,130.28,391.2]
[1725555504793,0.85848765,130.35,130.29,1.53465561]
[1725555504991,7.6732,130.33,130.3,1.53451176]
[1725555505590,0.85848765,130.35,130.28,391.2]
[1725555506093,20.85848765,130.35,130.28,391.2]
[1725555506895,7.6745,130.3,130.28,391.2]
[1725555507303,7.6741,130.31,130.28,391.2]
[1725555507686,7.6741,130.31,130.29,1.53475547]
[1725555507887,7.6735,130.32,130.29,1.53472733]
[1725555508200,20.0,130.31,130.29,1.53472733]
[1725555508978,20.0,130.31,130.28,1.5347314]
[1725555509696,20.0,130.31,130.28,9.2103314]
[1725555511003,20.0,130.31,130.29,7.675]
[1725555511181,20.0,130.32,130.29,7.675]
[1725555511386,27.6734,130.32,130.28,418.0644]
[1725555512496,27.6734,130.32,130.29,1.53459841]
[1725555512702,27.6734,130.32,130.3,1.53459879]
[1725555513097,7.6734,130.32,130.3,1.53459879]
[1725555513293,7.6716,130.35,130.31,9.2078821]
[1725555513496,20.0,130.34,130.31,1.5344821]
[1725555513721,7.6716,130.35,130.31,1.5344821]
[1725555514015,7.6716,130.35,130.31,9.2083821]
[1725555514901,7.6725,130.34,130.3,43.2306]
[1725555515290,7.6744,130.31,130.28,391.2]
[1725555515493,0.8586,130.37,130.28,391.2]
[1725555515494,1.71708765,130.37,130.28,391.2]
[1725555515809,21.71708765,130.37,130.28,391.2]
[1725555516012,7.6732,130.33,130.29,7.6749]
[1725555516205,27.6735,130.32,130.29,7.6749]
[1725555516410,7.6735,130.32,130.29,7.6749]
[1725555516711,20.0,130.31,130.29,7.6749]
[1725555517725,20.0,130.32,130.29,7.6749]
[1725555518216,20.0,130.32,130.29,19.1872]
[1725555518418,7.6732,130.33,130.29,26.8622]
[1725555518623,20.0,130.32,130.29,26.8622]
[1725555519316,0.85848765,130.35,130.29,26.8622]
[1725555519317,7.6724,130.34,130.29,19.1872]
[1725555519495,7.6724,130.34,130.3,1.53458266]
[1725555519692,20.0,130.33,130.3,1.53458266]
[1725555519922,7.6724,130.34,130.3,9.20898266]
[1725555520515,7.6724,130.34,130.3,7.6744]
[1725555520696,7.6724,130.34,130.31,1.53435164]
[1725555520895,7.6724,130.34,130.31,9.20825164]
[1725555521097,20.0,130.33,130.32,52.6733]
[1725555521292,7.6712,130.36,130.32,52.6733]
[1725555521493,7.6712,130.36,130.33,24.780899]
[1725555521707,7.6712,130.36,130.34,45.0]
[1725555521904,7.6712,130.36,130.35,1.53404028]
[1725555522304,7.6712,130.36,130.33,15.5741]
[1725555523693,7.6717,130.35,130.33,15.5741]
[1725555523920,7.6717,130.35,130.34,1.53426038]
[1725555524614,7.6711,130.36,130.34,1.53426038]
[1725555524920,7.6705,130.37,130.34,46.53426038]
[1725555525095,20.0,130.36,130.34,46.53426038]
[1725555525503,20.0,130.36,130.34,54.20616038]
[1725555525797,0.8589171,130.38,130.36,7.6709]
[1725555526019,0.8589171,130.38,130.37,54.20408975]
[1725555526525,0.8589171,130.38,130.37,73.38018975]
[1725555526826,0.8589171,130.38,130.37,71.8465]
[1725555527899,0.8589171,130.38,130.37,88.59190806]
[1725555528329,0.8589171,130.38,130.37,87.0586]
[1725555530401,0.8589171,130.38,130.37,60.2121]
[1725555530718,0.8589171,130.38,130.37,15.2121]
[1725555530927,0.8589171,130.38,130.34,418.0511]
[1725555531498,0.8589171,130.38,130.35,9.20524906]
[1725555531695,0.8589171,130.38,130.36,1.53381245]
[1725555533126,0.8589171,130.38,130.36,19.1771]
[1725555533627,0.8589171,130.38,130.34,391.2]
[1725555534725,7.671,130.37,130.35,1.53400572]
[1725555534926,8.5292171,130.38,130.35,1.53400572]
[1725555535105,20.0,130.37,130.36,1.53391386]
[1725555535306,0.8589171,130.38,130.36,9.20491386]
[1725555535500,0.8589171,130.38,130.37,7.6704]
[1725555538044,0.8589171,130.38,130.37,9.20368364]
[1725555539038,0.8589171,130.38,130.36,7.6709]
[1725555539533,0.8589171,130.38,130.37,7.6704]
[1725555539933,0.8589171,130.38,130.36,7.6709]
[1725555540243,0.8589171,130.38,130.37,7.6704]
[1725555540433,0.8589171,130.38,130.35,57.5357]
[1725555540434,0.8589171,130.38,130.36,7.6708]
[1725555540734,0.8589171,130.38,130.37,9.20399935]
[1725555540935,0.8589171,130.38,130.37,104.20399935]
[1725555541240,0.8589171,130.38,130.37,126.91879935]
[1725555541446,0.8589171,130.38,130.37,76.91879935]
[1725555541743,0.8589171,130.38,130.37,76.91863666]
[1725555542641,0.8589171,130.38,130.37,75.3852]
[1725555543434,0.8589171,130.38,130.37,125.3852]
[1725555543932,0.8589171,130.38,130.37,94.5613]
[1725555544318,0.8589171,130.38,130.37,49.5613]
[1725555544531,0.8589171,130.38,130.37,51.09479526]
[1725555545047,0.8589171,130.38,130.37,99.5613]
[1725555545741,0.8589171,130.38,130.37,144.5613]
[1725555546453,0.8589171,130.38,130.37,94.5613]
[1725555548008,0.8589171,130.38,130.37,144.5613]
[1725555549126,0.8589171,130.38,130.37,94.5613]
[1725555549949,0.8589171,130.38,130.37,43.4601]
[1725555551440,0.8589171,130.38,130.37,88.4601]
[1725555551735,0.8589171,130.38,130.37,89.9936826]
[1725555552138,0.8589171,130.38,130.37,88.4601]
[1725555552336,0.8589171,130.38,130.37,139.9933927]
[1725555553414,0.8589171,130.38,130.37,89.9933927]
[1725555553614,0.8589171,130.38,130.37,88.4601]
[1725555553838,0.8589171,130.38,130.37,139.99339531]
[1725555554042,0.8589171,130.38,130.37,138.4601]
[1725555554629,0.8589171,130.38,130.37,139.99327988]
[1725555555142,0.8589171,130.38,130.37,138.4601]
[1725555557144,0.8589171,130.38,130.37,139.99340388]
[1725555557527,7.6655,130.46,130.42,7.6674]
[1725555557721,25.7052,130.48,130.43,46.533003]
[1725555557722,27.6658,130.45,130.43,46.533003]
[1725555557924,27.6658,130.45,130.43,45.0]
[1725555558138,27.6658,130.45,130.42,45.0]
[1725555559433,27.6658,130.45,130.43,1.53311913]
[1725555559831,27.6658,130.45,130.42,45.0]
[1725555560628,7.6675,130.43,130.39,7.6689]
[1725555560834,7.6675,130.43,130.4,52.6686]
[1725555561545,20.0,130.45,130.38,19.1737]
[1725555561757,7.6667,130.44,130.4,7.6684]
[1725555562370,20.85848765,130.46,130.4,7.6684]
[1725555562528,7.6669,130.43,130.4,7.6684]
[1725555563157,20.0,130.46,130.41,7.668]
[1725555563453,27.6652,130.46,130.42,7.6674]
[1725555563655,7.6652,130.46,130.43,45.0]
[1725555565741,20.0,130.45,130.43,45.0]
[1725555566052,27.6658,130.45,130.42,7.6674]
[1725555567468,20.0,130.45,130.43,1.53311526]
[1725555567625,7.6648,130.47,130.43,54.19991526]
[1725555568030,20.0,130.46,130.43,54.19991526]
[1725555568229,20.0,130.46,130.44,7.666]
[1725555568452,20.0,130.46,130.45,1.53297151]
[1725555569449,20.0,130.46,130.44,1.53297235]
[1725555569655,20.0,130.46,130.44,9.19927235]
[1725555569957,27.6646,130.47,130.44,7.6663]
[1725555570646,27.6646,130.47,130.4,6.2689]
[1725555570647,20.0,130.47,130.41,7.6679]
[1725555570859,7.6664,130.44,130.41,7.6679]
[1725555571028,7.666,130.45,130.41,7.6679]
[1725555571237,20.0,130.44,130.41,7.6679]
[1725555571937,20.0,130.45,130.4,33.1079]
[1725555572137,20.0,130.45,130.41,45.0]
[1725555572332,20.0,130.45,130.42,7.6674]
[1725555572964,20.0,130.45,130.4,19.1704]
[1725555573262,7.6658,130.45,130.42,19.1686]
[1725555573471,20.0,130.44,130.42,19.1686]
[1725555573633,20.0,130.44,130.42,26.8361]
[1725555574035,20.0,130.45,130.42,26.8361]
[1725555574662,27.6658,130.45,130.42,19.1686]
[1725555575037,20.0,130.45,130.42,26.8361]
[1725555575238,20.0,130.45,130.43,1.5331537]
[1725555575456,20.0,130.45,130.43,9.1999537]
[1725555575660,20.0,130.46,130.43,9.1999537]
[1725555575852,20.0,130.46,130.44,7.6663]
[1725555576237,8.52148765,130.5,130.46,7.6647]
[1725555576437,8.52148765,130.5,130.47,1.5327458]
[1725555576636,8.52148765,130.5,130.46,7.6647]
[1725555577546,20.0,130.49,130.46,7.6647]
[1725555577869,8.52148765,130.5,130.46,7.6647]
[1725555578234,8.52148765,130.5,130.45,26.8285]
[1725555578235,7.6634,130.49,130.45,26.8285]
[1725555578650,7.6634,130.49,130.46,1.5328417]
[1725555579071,7.6634,130.49,130.45,26.8285]
[1725555579767,7.6634,130.49,130.46,1.53284155]
[1725555580161,7.6634,130.49,130.43,15.3776]
[1725555580162,28.52258765,130.48,130.44,7.6661]
[1725555580350,27.6641,130.48,130.44,7.6661]
[1725555580962,7.6646,130.47,130.44,7.6661]
[1725555581249,7.6662,130.45,130.41,7.6678]
[1725555581557,20.0,130.44,130.41,7.6678]
[1725555581863,28.52518765,130.44,130.4,26.8403]
[1725555582241,7.6669,130.43,130.4,26.8403]
[1725555582443,8.52638765,130.42,130.38,7.6697]
[1725555582660,7.6679,130.42,130.38,7.6697]
[1725555582863,0.85848765,130.43,130.35,38.3568]
[1725555582864,7.6691,130.4,130.35,391.2]
[1725555583073,7.6691,130.4,130.33,15.6674]
[1725555583074,0.85848765,130.39,130.33,15.6674]
[1725555583281,30.0,130.44,130.29,456.8674]
[1725555583282,0.85848765,130.43,130.29,456.8674]
[1725555583485,7.6722,130.34,130.3,19.1858]
[1725555584343,7.6722,130.34,130.3,7.6744]
[1725555584844,7.6717,130.35,130.3,7.6744]
[1725555585059,20.0,130.34,130.31,7.6735]
[1725555585250,20.0,130.34,130.32,7.6733]
[1725555585662,20.0,130.35,130.32,7.6733]
[1725555586166,20.0,130.35,130.32,9.20762085]
[1725555586351,20.0,130.35,130.31,26.8583]
[1725555587052,20.0,130.34,130.31,26.8583]
[1725555587270,20.0,130.35,130.32,54.2076174]
[1725555587471,20.0,130.36,130.33,1.53431934]
[1725555587846,20.0,130.36,130.32,52.6732]
[1725555588669,20.0,130.36,130.32,54.20751108]
[1725555588870,20.0,130.36,130.33,20.71581153]
[1725555589056,28.52838765,130.38,130.34,7.6721]
[1725555589259,27.6699,130.38,130.35,1.53412174]
[1725555589461,20.0,130.38,130.35,1.53412174]
[1725555589661,8.52788765,130.39,130.35,1.53412174]
[1725555590777,7.6699,130.38,130.35,1.53412174]
[1725555590977,0.85848765,130.39,130.35,9.20572174]
[1725555590978,20.0,130.37,130.35,9.20572174]
[1725555591271,20.0,130.38,130.35,9.20572174]
[1725555591444,20.0,130.38,130.35,7.6716]
[1725555591840,20.0,130.38,130.34,7.6721]
[1725555591841,27.6699,130.38,130.34,7.6721]
[1725555592078,7.6704,130.37,130.33,26.8541]
[1725555592454,7.6704,130.37,130.33,19.1815]
[1725555592455,7.671,130.36,130.33,19.1815]
[1725555593173,7.671,130.36,130.33,20.71577722]
[1725555593974,7.6706,130.37,130.33,28.38847722]
[1725555594176,20.0,130.36,130.33,28.38847722]
[1725555594473,7.6699,130.38,130.34,7.6719]
[1725555594657,20.0,130.37,130.35,1.53400943]
[1725555596048,20.0,130.37,130.34,7.6719]
[1725555600154,27.6706,130.37,130.34,1.53405609]
[1725555600455,20.0,130.37,130.34,46.53412665]
[1725555600668,7.6702,130.38,130.34,52.6721]
[1725555600882,20.0,130.37,130.34,52.6721]
[1725555601255,28.52898765,130.37,130.33,26.8541]
[1725555601484,27.6705,130.37,130.33,26.8541]
[1725555601776,8.52958765,130.36,130.33,19.1815]
[1725555601958,7.6711,130.36,130.33,19.1815]
[1725555602573,7.6711,130.36,130.33,26.8541]
[1725555602986,27.6706,130.37,130.33,26.8541]
[1725555603167,27.6706,130.37,130.34,1.53430878]
[1725555603483,27.6706,130.37,130.35,7.6712]
[1725555603484,20.0,130.37,130.35,7.6712]
[1725555603660,20.0,130.38,130.35,7.6712]
[1725555603862,7.6677,130.42,130.38,7.6698]
[1725555604202,19.1663,130.44,130.4,19.1708]
[1725555604203,7.6664,130.44,130.4,19.1708]
[1725555604478,7.6664,130.44,130.4,26.8393]
[1725555604662,7.6679,130.42,130.38,7.6695]
[1725555608753,7.6679,130.42,130.37,26.8456]
[1725555608957,7.6679,130.42,130.38,7.6697]
[1725555610080,20.8805,130.46,130.37,26.8458]
[1725555610081,28.52668765,130.41,130.37,26.8458]
[1725555610288,27.6682,130.41,130.37,26.8458]
[1725555610777,20.0,130.41,130.37,26.8458]
[1725555610984,7.6693,130.39,130.35,398.8714]
[1725555611982,0.85848765,130.38,130.35,391.2]
[1725555612279,19.1719,130.4,130.35,391.2]
[1725555612582,20.85848765,130.39,130.31,25.7816]
[1725555612807,7.672,130.35,130.31,26.8577]
[1725555613084,27.6722,130.34,130.3,7.6743]
[1725555613279,27.6722,130.34,130.3,9.20882553]
[1725555613458,27.6722,130.34,130.3,7.6743]
[1725555614981,27.6722,130.34,130.31,7.6739]
[1725555615984,20.0,130.34,130.32,1.53444853]
[1725555616181,7.6712,130.36,130.32,9.20724853]
[1725555616383,2.57568765,130.4,130.33,46.53420771]
[1725555616564,7.6702,130.38,130.34,9.20628128]
[1725555617159,7.6704,130.37,130.34,9.20628128]
[1725555617373,7.6704,130.37,130.34,1.53418128]
[1725555617560,8.52968765,130.36,130.32,26.855]
[1725555617775,7.6712,130.36,130.32,26.855]
[1725555618084,7.6706,130.37,130.33,7.6727]
[1725555618383,19.1733,130.39,130.33,7.6727]
[1725555618384,20.02838765,130.42,130.34,64.18]
[1725555618582,7.6691,130.4,130.36,7.6709]
[1725555619076,7.6693,130.39,130.35,7.6714]
[1725555619876,0.85848765,130.38,130.33,391.2]
[1725555620466,7.6715,130.36,130.33,391.2]
[1725555620663,0.85848765,130.38,130.33,391.2]
[1725555620664,0.85848765,130.35,130.33,391.2]
[1725555620867,7.6722,130.34,130.33,391.2]
[1725555621063,27.6722,130.34,130.33,391.2]
[1725555622784,20.0,130.34,130.33,391.2]
[1725555623601,27.6722,130.34,130.33,391.2]
[1725555623777,7.6755,130.29,130.26,15.4607]
[1725555623980,7.675,130.3,130.26,23.1375]
[1725555624998,0.85848765,130.31,130.26,23.1375]
[1725555624999,8.53268765,130.31,130.27,7.6761]
[1725555625202,7.6742,130.31,130.27,9.21118278]
[1725555625882,7.6729,130.33,130.29,7.675]
[1725555626085,20.0,130.32,130.29,7.675]
[1725555626302,20.0,130.32,130.31,7.674]
[1725555626473,20.0,130.32,130.3,52.6744]
[1725555626679,7.6722,130.34,130.3,52.6744]
[1725555626680,20.0,130.33,130.3,52.6744]
[1725555627091,27.6728,130.33,130.29,26.8624]
[1725555628798,0.85848765,130.32,130.26,425.852]
[1725555629005,7.6749,130.3,130.26,433.5285]
[1725555629398,0.85848765,130.32,130.26,425.852]
[1725555629988,20.0,130.33,130.26,425.852]
[1725555629989,20.0,130.33,130.3,7.6745]
[1725555630179,7.672,130.35,130.31,7.6739]
[1725555630384,20.0,130.34,130.31,7.6739]
[1725555630809,25.5974,130.4,130.32,1.53453091]
[1725555631115,25.5974,130.4,130.32,19.1832]
[1725555631315,7.6716,130.35,130.32,19.1832]
[1725555632201,0.85848765,130.39,130.32,26.8566]
[1725555632591,7.6714,130.36,130.32,26.8566]
[1725555633206,0.85848765,130.35,130.29,19.1865]
[1725555633409,7.6723,130.34,130.3,52.674]
[1725555634103,7.6723,130.34,130.31,7.6739]
[1725555634297,7.6718,130.35,130.31,7.6739]
[1725555634905,0.85848765,130.34,130.29,19.1865]
[1725555635119,19.1749,130.38,130.29,26.8615]
[1725555635120,7.6731,130.33,130.29,26.8615]
[1725555635295,0.85848765,130.32,130.29,26.8615]
[1725555635488,7.6747,130.3,130.27,391.2]
[1725555635699,0.85848765,130.32,130.27,391.2]
[1725555636009,1.7172,130.36,130.28,1.53500504]
[1725555636010,7.6743,130.31,130.28,1.53500504]
[1725555636194,7.6743,130.31,130.28,9.21070504]
[1725555636811,7.6736,130.32,130.28,28.40010504]
[1725555636993,7.6736,130.32,130.28,26.8651]
[1725555637789,0.85848765,130.31,130.27,391.2]
[1725555637986,7.6746,130.3,130.27,398.8763]
[1725555638212,27.6746,130.3,130.27,398.8763]
[1725555638509,27.6746,130.3,130.27,391.2]
[1725555638884,20.0,130.3,130.27,391.2]
[1725555639223,0.85848765,130.29,130.23,23.5674]
[1725555639390,0.85848765,130.29,130.23,15.889]
[1725555639723,7.6782,130.24,130.2,15.889]
[1725555639893,7.6791,130.23,130.2,15.889]
[1725555640319,7.6788,130.23,130.2,15.889]
[1725555641011,7.6788,130.23,130.19,6.2596]
[1725555641407,0.85848765,130.26,130.2,7.6803]
[1725555641714,0.85848765,130.26,130.19,6.2596]
[1725555641715,7.6791,130.23,130.19,6.2596]
[1725555642420,8.53788765,130.22,130.19,6.2596]
[1725555642717,8.53858765,130.21,130.18,19.2029]
[1725555642891,7.6801,130.21,130.17,23.5341]
[1725555643323,7.6808,130.2,130.17,15.8521]
[1725555643823,19.1943,130.25,130.12,26.8971]
[1725555643824,7.6829,130.16,130.12,26.8971]
[1725555644504,7.6823,130.17,130.12,26.8971]
[1725555644706,20.0,130.16,130.12,26.8971]
[1725555644895,20.85848765,130.16,130.1,22.4227]
[1725555645095,7.6844,130.14,130.1,22.4227]
[1725555645418,0.85848765,130.13,130.09,19.2166]
[1725555645593,7.684,130.14,130.09,19.2166]
[1725555645799,20.0,130.13,130.1,7.6858]
[1725555646316,0.85848765,130.16,130.12,7.6851]
[1725555646499,20.0,130.16,130.12,7.6851]
[1725555647016,20.85848765,130.16,130.08,69.2179]
[1725555647223,0.85848765,130.16,130.11,7.6853]
[1725555647400,0.85848765,130.16,130.11,7.6856]
[1725555647401,8.54168765,130.16,130.11,7.6856]
[1725555648107,8.54168765,130.16,130.12,7.685]
[1725555648500,20.0,130.17,130.13,1.53670058]
[1725555648710,0.85848765,130.16,130.13,7.6844]
[1725555648906,0.85848765,130.2,130.12,398.885]
[1725555649093,7.6829,130.16,130.12,391.2]
[1725555649304,8.54208765,130.15,130.12,391.2]
[1725555649508,7.6836,130.15,130.12,391.2]
[1725555650599,0.85848765,130.14,130.12,391.2]
[1725555650803,7.6842,130.14,130.12,391.2]
[1725555651208,7.6846,130.13,130.12,391.2]
[1725555651510,0.85848765,130.17,130.12,391.2]
[1725555651511,7.6842,130.14,130.12,391.2]
[1725555652221,7.6839,130.15,130.12,391.2]
[1725555652400,38.4043,130.2,130.12,391.2]
[1725555652401,20.85848765,130.14,130.12,391.2]
[1725555652602,20.0,130.14,130.12,391.2]
[1725555653027,20.85848765,130.19,130.12,391.2]
[1725555653522,7.684,130.14,130.12,391.2]
[1725555654105,7.6846,130.13,130.12,391.2]
[1725555654293,20.0,130.13,130.12,391.2]
[1725555654497,20.0,130.13,130.08,19.2178]
[1725555654711,8.54208765,130.15,130.1,19.2156]
[1725555654922,20.0,130.14,130.1,19.2156]
[1725555655904,20.0,130.14,130.11,7.6857]
[1725555657014,20.0,130.14,130.1,19.2156]
[1725555657015,27.684,130.14,130.1,26.9019]
[1725555659524,8.54308765,130.13,130.1,19.2156]
[1725555659822,8.54308765,130.13,130.09,7.6867]
[1725555660932,0.85848765,130.16,130.1,1.53696965]
[1725555661105,7.6822,130.17,130.13,7.6843]
[1725555661303,7.682,130.18,130.14,9.22052428]
[1725555662007,7.682,130.18,130.14,9.22048894]
[1725555663120,20.0,130.17,130.14,9.22048894]
[1725555663316,20.0,130.17,130.15,1.53658821]
[1725555663628,0.85848765,130.22,130.15,392.7364594]
[1725555663803,7.6788,130.23,130.16,45.0]
[1725555664005,7.6788,130.23,130.17,1.535975]
[1725555664223,0.85848765,130.22,130.17,19.2055]
[1725555664527,0.85848765,130.22,130.16,7.6823]
[1725555665010,0.85848765,130.22,130.15,391.2]
[1725555665011,7.681,130.2,130.15,398.8832]
[1725555665356,0.85848765,130.19,130.15,398.8832]
[1725555665829,8.53958765,130.19,130.15,398.8832]
[1725555666002,7.6823,130.17,130.15,391.2]
[1725555666415,7.6819,130.18,130.15,391.2]
[1725555666634,0.85848765,130.21,130.15,391.2]
[1725555666927,7.6794,130.22,130.17,26.8871]
[1725555667431,7.6794,130.22,130.18,7.6813]
[1725555667625,7.6788,130.23,130.19,7.681]
[1725555668010,0.85848765,130.22,130.19,7.681]
[1725555668204,8.53808765,130.22,130.18,7.6814]
[1725555668399,7.6796,130.22,130.18,7.6814]
[1725555668628,7.6788,130.23,130.19,26.8832]
[1725555668812,0.85848765,130.25,130.2,1.53584322]
[1725555669021,0.85848765,130.25,130.2,1.53586711]
[1725555669222,8.53648765,130.25,130.21,7.6795]
[1725555669614,1.7172,130.27,130.21,7.6795]
[1725555669615,7.677,130.26,130.22,9.21474635]
[1725555669831,8.53548765,130.26,130.22,9.21474635]
[1725555670003,7.677,130.26,130.22,9.21474635]
[1725555670211,0.85848765,130.25,130.21,19.1994]
[1725555670531,19.191,130.27,130.19,6.5523]
[1725555670737,7.6793,130.22,130.18,43.4352]
[1725555671027,7.6789,130.23,130.19,7.6807]
[1725555671236,7.6789,130.23,130.19,9.21664573]
[1725555671935,7.6776,130.25,130.21,7.6795]
[1725555672144,20.0,130.24,130.2,19.2011]
[1725555672344,0.85848765,130.28,130.22,1.53567289]
[1725555672632,1.7172,130.33,130.24,16.139]
[1725555672633,0.85848765,130.31,130.24,16.139]
[1725555672814,0.85848765,130.31,130.29,7.6751]
[1725555673021,0.85848765,130.31,130.28,26.8645]
[1725555673218,7.6747,130.3,130.26,7.6768]
[1725555673829,8.53378765,130.29,130.25,26.8696]
[1725555674044,7.6753,130.29,130.25,26.8696]
[1725555675234,7.6741,130.31,130.26,52.6765]
[1725555675537,7.6741,130.31,130.27,7.6762]
[1725555675843,0.85848765,130.33,130.27,7.6762]
[1725555675844,8.53128765,130.33,130.28,45.0]
[1725555676134,7.6728,130.33,130.29,1.53475382]
[1725555676317,0.85848765,130.34,130.28,45.0]
[1725555676318,7.6734,130.32,130.28,45.0]
[1725555676519,7.6734,130.32,130.28,46.53483104]
[1725555677319,7.6734,130.32,130.28,54.21043104]
[1725555678019,7.6741,130.31,130.27,26.8661]
[1725555678416,0.85848765,130.3,130.24,35.333]
[1725555678634,7.6759,130.28,130.24,35.333]